Cogmind - Beta 10.2 @@@ ROGUE MODE // 2021.01.19 @ 05:17:13 Player: Luigi Panache Result: Destroyed by F4-IBS(g) with Beamcaster Performance ------------- Evolutions (5) 2500 Regions Visited (14) 2800 Robots Destroyed (123) 615 Value Destroyed (5347) 5347 Prototype IDs (29) 580 Alien Tech Used (0) 0 Bonus (2321) 2321 TOTAL SCORE: 14163 Bonus ------- High Alert Combat Kills 553 Follower Combat Kills 75 Entered Garrisons 400 Used RIF Installer 1000 Aligned with FarCom 300 Friendly Fire -7 Cogmind --------- Core Integrity 0/1000 Matter 149/300 Energy 100/100 System Corruption 4% Temperature Cool (9) Movement Core (700) Ox13 Location -5/Upper Caves Parts ------- > --- POWER (1) -------- (None) > --- PROPULSION (4) --- (None) > --- UTILITY (9) ------ High-capacity Storage Unit Relay Coupler [NC] (15) > --- WEAPON (3) ------- Field Lobotomy Kit > --- INVENTORY (12) --- Light Nuclear Core High-capacity Storage Unit Humpback High-capacity Matter Pod (200) Advanced Signal Interpreter Makeshift Transmission Jammer Relay Coupler [NC] (29) AWS/Thermal AWS/Gauss Peak State ------------ > --- POWER ------------ F-cell Engine > --- PROPULSION ------- Light Treads Medium Treads Armored Medium Treads Armored Medium Treads > --- UTILITY ---------- High-capacity Storage Unit Humpback Advanced Target Analyzer Advanced Target Analyzer Hardened Medium Armor Plating Layered Light Armor Plating Layered Light Armor Plating Relay Coupler [NC] > --- WEAPON ----------- Flak Gun Heavy Gauss Cannon Heavy Gauss Cannon > --- INVENTORY -------- Light Nuclear Core Cold Fusion Reactor Light Treads Light Treads Medium Treads Improved Cesium-ion Thruster Improved Cesium-ion Thruster High-capacity Storage Unit High-capacity Storage Unit High-capacity Storage Unit High-capacity Storage Unit Humpback High-capacity Matter Pod Advanced Signal Interpreter Improved Particle Charger Layered Light Armor Plating Relay Coupler [NC] Relay Coupler [NC] Relay Coupler [NC] Relay Coupler [NC] Relay Coupler [Sentry] Relay Coupler [Hunter] Heavy EM Pulse Gun AWS/Thermal Improved EM Pulse Cannon Improved EM Pulse Cannon AWS/Gauss Field Lobotomy Kit Impact Mace [Rating: 81] Favorites ----------- Power F-cell Engine Engine F-cell Engine Power Core Light Nuclear Core Propulsion Medium Treads Treads Medium Treads Leg Aluminum Leg Wheel Wheel Hover Unit Hover Unit Utility Humpback Device Structural Scanner Storage Humpback Processor Advanced Target Analyzer Hackware Relay Coupler [NC] Protection Layered Light Armor Plating Weapon EM Pulse Gun Energy Gun EM Pulse Gun Energy Cannon EM Pulse Cannon Ballistic Gun AWS/Gauss Ballistic Cannon Heavy Gauss Cannon Launcher Grenade Launcher Special Weapon Field Lobotomy Kit Impact Weapon Impact Mace Special Melee Weapon Datajack Build | -11 -10 -10 -10 -9 -8 -8 -7 -7 -7 -6 -6 -6 -5 -5 ------- Run | Scr Mat Min Exi Min Mat Gar Fac Gar Fac Fac Low Low Fac Upp Slots Evolved 10 | . . . . . 4 . 2 . . 2 . . 2 . Power . | . . . . . . . . . . . . . . . Propulsion 2 | . . . . . 1 . . . . . . . 1 . Utility 7 | . . . . . 3 . 1 . . 2 . . 1 . Weapon 1 | . . . . . . . 1 . . . . . . . Parts Attached 94 | 2 14 5 1 4 17 3 6 9 15 7 . . 1 10 Power 5 | . . . . 1 . . . 2 1 1 . . . . Engine 3 | . . . . 1 . . . . 1 1 . . . . Core 2 | . . . . . . . . 2 . . . . . . Reactor . | . . . . . . . . . . . . . . . Propulsion 22 | 2 4 2 . 2 7 . . . 2 1 . . 1 1 Treads 18 | 2 2 . . 2 7 . . . 2 1 . . 1 1 Leg . | . . . . . . . . . . . . . . . Wheel 2 | . . 2 . . . . . . . . . . . . Hover 2 | . 2 . . . . . . . . . . . . . Flight . | . . . . . . . . . . . . . . . Utility 32 | . 6 . 1 . 7 . 2 2 6 4 . . . 4 Device 1 | . . . . . 1 . . . . . . . . . Storage 9 | . 4 . 1 . 2 . . . 2 . . . . . Processor 5 | . . . . . 1 . 1 . . 1 . . . 2 Hackware 5 | . . . . . . . . 1 3 . . . . 1 Protection 12 | . 2 . . . 3 . 1 1 1 3 . . . 1 Artifact . | . . . . . . . . . . . . . . . Weapon 35 | . 4 3 . 1 3 3 4 5 6 1 . . . 5 Energy Gun 15 | . 4 2 . . 2 1 1 1 4 . . . . . Energy Cannon 2 | . . . . . . . 1 . 1 . . . . . Ballistic Gun 9 | . . 1 . 1 1 1 1 2 . 1 . . . 1 Ballistic Cannon 2 | . . . . . . . . . . . . . . 2 Launcher 2 | . . . . . . 1 1 . . . . . . . Special Weapon 1 | . . . . . . . . . . . . . . 1 Impact Weapon 1 | . . . . . . . . . . . . . . 1 Slashing Weapon . | . . . . . . . . . . . . . . . Piercing Weapon . | . . . . . . . . . . . . . . . Special Melee Weapon 3 | . . . . . . . . 2 1 . . . . . Unidentified Prototypes 3 | . . . . . . . . . 1 1 . . . 1 Parts Lost 26 | . 2 1 . . 3 . 2 1 . . . 1 . 16 Power 2 | . . . . . . . 1 . . . . . . 1 Propulsion 6 | . . . . . 1 . . . . . . . . 5 Utility 8 | . . . . . . . . 1 . . . . . 7 Weapon 10 | . 2 1 . . 2 . 1 . . . . 1 . 3 Highest Loss Streak 14 | . 2 1 . . 2 . 1 1 . . . 1 . 14 Average Slot Usage (%) 82 | . 99 100 90 71 77 89 83 75 78 79 80 78 69 78 Engine 7 | . 14 14 14 14 9 9 6 . 5 6 6 6 5 4 Treads 20 | . 28 . . 27 25 27 23 23 23 20 20 20 22 19 Wheel 2 | . . 28 28 . . . . . . . . . . . Device 1 | . . . . . 5 9 7 . . . . . . . Storage 15 | . 16 28 19 14 18 18 15 15 15 13 13 13 11 10 Processor 1 | . . . . . 2 . 3 . . . . . . 4 Hackware 3 | . . . . . . . . 6 7 6 6 6 5 7 Protection 10 | . 10 . . . 7 9 7 7 6 19 20 20 17 16 Energy Gun 8 | . 26 23 28 . 2 7 6 10 6 5 . . . . Ballistic Gun 3 | . 1 4 . 13 7 1 . 1 2 . 6 6 5 4 Special Melee Weapon 2 | . . . . . . . . 3 6 6 6 4 . . Naked Turns . | . . . . . . . . . . . . . . . Heaviest Build 167 | 11 41 41 89 99 120 120 138 132 157 167 167 167 166 166 Greatest Support 103 | 40 40 20 20 40 84 84 84 84 84 76 76 76 103 103 Greatest Overweight (x) 47 | . 2 2 4 4 2 1 1 1 2 2 2 2 2 47 Average Overweight (x) 1 | . . 2 3 2 1 1 1 1 1 1 2 2 1 1 Largest Inventory Capacity 52 | 6 16 16 24 24 30 30 30 30 52 32 32 32 32 32 Average Capacity 27 | 6 8 16 20 24 29 30 30 30 31 32 32 32 32 31 Most Carried 32 | 6 13 16 24 24 30 30 30 30 32 32 32 32 32 32 Average Carried 26 | 6 6 12 18 23 25 29 29 29 30 31 31 32 32 31 Final Capacity 32 | 6 16 16 24 24 30 30 30 30 32 32 32 32 32 12 Final Carried 32 | 6 13 15 24 24 30 30 30 30 32 32 32 32 32 12 Class Distribution -------------------- 41% | Bothacker-Mutant 29% | Hauler-Mutant 16% | Mutant 7% | Hauler-Tank 4% | Bothacker-Tank Dominant Class ---------------- Mutant | -10/Materials Mutant | -10/Mines Hauler-Mutant | -10/Exiles Hauler-Mutant | -9/Mines Hauler-Mutant | -8/Materials Hauler-Mutant | -8/Garrison Bothacker-Mutant | -7/Factory Bothacker-Mutant | -7/Garrison Bothacker-Mutant | -7/Factory Bothacker-Mutant | -6/Factory Bothacker-Mutant | -6/Lower Caves Bothacker-Mutant | -6/Lower Caves Hauler-Mutant | -5/Factory Hauler-Tank | -5/Upper Caves Resources | -11 -10 -10 -10 -9 -8 -8 -7 -7 -7 -6 -6 -6 -5 -5 ----------- Run | Scr Mat Min Exi Min Mat Gar Fac Gar Fac Fac Low Low Fac Upp Matter Collected 1994 | 220 140 71 194 50 152 25 243 81 313 173 114 . . 218 Remotely . | . . . . . . . . . . . . . . . Salvage Created 4981 | . 510 245 . 108 1400 291 429 284 423 511 46 . 83 651 Parts 249 | . 31 10 . 2 78 14 22 12 25 24 4 . 3 24 Haulers Intercepted 4 | . 2 . . . . . . . 1 1 . . . . Recyclers Shooed 3 | . 1 . . . . . 1 . 1 . . . . . Parts Field Recycled . | . . . . . . . . . . . . . . . Retrieved Matter . | . . . . . . . . . . . . . . . Parts Self-Destructed 26 | . . . . . . . . . . . 4 2 . 20 Prevented . | . . . . . . . . . . . . . . . Kills | -11 -10 -10 -10 -9 -8 -8 -7 -7 -7 -6 -6 -6 -5 -5 ------- Run | Scr Mat Min Exi Min Mat Gar Fac Gar Fac Fac Low Low Fac Upp Combat Hostiles Destroyed 103 | . 6 6 . 6 26 16 11 7 5 7 1 . 1 11 Guns 76 | . 6 5 . 6 25 . 8 7 5 5 1 . 1 7 Cannons 4 | . . . . . . . . . . . . . . 4 AOE 22 | . . 1 . . . 16 3 . . 2 . . . . Classes Destroyed 16 | . 6 . . 2 3 1 2 . . . . . . 2 Worker 2 | . . . . . 1 . . . . 1 . . . . Builder 7 | . . . . . 4 . 3 . . . . . . . Hauler 4 | . 2 . . . . . . . 1 1 . . . . Recycler 4 | . 2 . . . 1 . . . 1 . . . . . Operator 2 | . 1 . . . 1 . . . . . . . . . Watcher 6 | . 1 . . . 3 . . . 1 1 . . . . Swarmer 20 | . 2 2 . . 7 6 . 3 . . . . . . Grunt 52 | . 4 4 . . 16 9 9 2 2 4 . . . 2 Brawler 2 | . . . . . . 1 . 1 . . . . . . Sentry 8 | . . . . . 3 . . . . 2 . . 1 2 Demolisher 1 | . . . . 1 . . . . . . . . . . Hunter 3 | . . . . . . . 1 1 1 . . . . . Programmer 9 | . . . . . . . 1 . 2 1 1 . . 4 Assembled 5 | . . . . 5 . . . . . . . . . . Thug 1 | . . . . . . . . . . . . . . 1 Butcher 1 | . . . . . . . . . . . . . . 1 Mutant 1 | . . . . . . . . . . . . . . 1 Best Kill Streak 12 | . 4 4 . 2 12 6 10 4 2 5 1 . 1 5 Combat Bots Only 8 | . 3 4 . 2 8 6 8 4 1 4 1 . 1 5 Max Kills in Single Turn 3 | . 1 2 . 1 2 3 2 1 1 3 1 . 1 1 Gunslinging 1 | . . 1 . . . . . . . . . . . . Exploded 3 | . . 1 . . . 3 1 . . 2 . . . . Melee . | . . . . . . . . . . . . . . . Uniques/NPCs Destroyed . | . . . . . . . . . . . . . . . Combat | -11 -10 -10 -10 -9 -8 -8 -7 -7 -7 -6 -6 -6 -5 -5 -------- Run | Scr Mat Min Exi Min Mat Gar Fac Gar Fac Fac Low Low Fac Upp Damage Taken 7806 | . 469 155 . 37 420 399 1196 373 141 608 15 94 20 3879 Core 1390 | . 56 9 . . 65 107 83 14 . 24 15 . . 1017 Absorbed by Shields 12 | . . . . . . 12 . . . . . . . . Core Remaining (%) 84 | 100 . . . 74 . 68 . . 86 . . 95 . . Volleys Fired 152 | . 35 17 . . 14 29 12 9 9 . . . . 27 Largest 3 | . 2 2 . . 2 1 3 2 2 . . . . 3 Hottest 150 | . 80 80 . . 80 45 138 73 73 . . . . 150 Shots Fired 483 | . 62 33 . 21 94 29 52 49 26 37 1 4 1 74 Gun 424 | . 62 33 . 21 94 7 38 49 24 37 1 4 1 53 Cannon 28 | . . . . . . . 5 . 2 . . . . 21 Launcher 31 | . . . . . . 22 9 . . . . . . . Special . | . . . . . . . . . . . . . . . Kinetic 206 | . . 5 . 21 75 3 12 3 6 1 1 4 1 74 Thermal 107 | . . . . . . . 21 39 11 36 . . . . Explosive 31 | . . . . . . 22 9 . . . . . . . Electromagnetic 139 | . 62 28 . . 19 4 10 7 9 . . . . . Robot Hit Streak 30 | . 14 11 . 4 26 10 8 18 11 17 6 10 11 30 Robot Miss Streak 5 | . 3 2 . 2 5 2 3 1 4 2 . . . 4 Penetration Max 2 | . . . . . 2 . . . . . . . . . Secondary Targets 1 | . . 1 . . . . . . . . . . . . Max Gunslinging Chain 1 | . . 1 . . . . . . . . . . . . Autonomous 260 | . . . . 21 75 . 33 39 12 38 1 4 1 36 Shots Hit Robots 389 | . 42 21 . 16 75 16 33 42 33 37 1 4 1 68 Core Hits 228 | . 21 9 . 6 52 29 34 12 11 16 1 . 1 36 Critical Hits 9 | . . . . . 1 . . . . . . . 1 7 Critical Kills 4 | . . . . . 1 . . . . . . . 1 2 Critical Parts Destroyed 5 | . . . . . . . . . . . . . . 5 Melee Attacks 31 | . . . . . . . . 3 19 5 . . . 4 Impact 4 | . . . . . . . . . . . . . . 4 Slashing . | . . . . . . . . . . . . . . . Piercing . | . . . . . . . . . . . . . . . Sneak Attacks 17 | . . . . . . . . 1 11 5 . . . . Combat Hostiles 5 | . . . . . . . . 1 4 . . . . . Follow-up Attacks . | . . . . . . . . . . . . . . . Damage Inflicted 12649 | . 813 304 . 393 2886 1327 1715 1112 458 1136 32 120 34 2319 Guns 8921 | . 560 242 . 393 2724 . 890 1112 405 854 32 120 34 1555 Cannons 707 | . . . . . . . 27 . 53 . . . . 627 Explosions 2799 | . 242 62 . . 99 1327 787 . . 282 . . . . Melee 137 | . . . . . . . . . . . . . . 137 Ramming 85 | . 11 . . . 63 . 11 . . . . . . . Kinetic 5889 | . . 25 . 393 2511 . 379 33 146 34 32 120 34 2182 Thermal 3275 | . 242 62 . . 99 . 495 1065 210 1102 . . . . Explosive 2114 | . . . . . . 1327 787 . . . . . . . Electromagnetic 1149 | . 560 217 . . 213 . 43 14 102 . . . . . Impact 137 | . . . . . . . . . . . . . . 137 Slashing . | . . . . . . . . . . . . . . . Piercing . | . . . . . . . . . . . . . . . Highest Corruption 4 | . . . . . . . . . 1 . . . . 4 Average Corruption 2 | . . . . . . . . . 1 . . . . 3 Corruption Purged . | . . . . . . . . . . . . . . . Effects 22 | . . . . . . . . . 2 . . . . 20 Message Errors 3 | . . . . . . . . . 1 . . . . 2 Matter Fused 4 | . . . . . . . . . . . . . . 4 Heat Flow Errors 5 | . . . . . . . . . . . . . . 5 Energy Discharges 6 | . . . . . . . . . 1 . . . . 5 Data Loss (minor) 1 | . . . . . . . . . . . . . . 1 Targeting Errors 3 | . . . . . . . . . . . . . . 3 Overload Shots . | . . . . . . . . . . . . . . . Overflow Damage 121 | . 45 . . . . 14 7 . 2 . . . . 53 Projectiles 17 | . . . . . . . . . 2 . . . . 15 Explosions 66 | . 45 . . . . 14 7 . . . . . . . Melee 38 | . . . . . . . . . . . . . . 38 Knockbacks 6 | . . . . . . . . . . . . . . 6 Impact 2 | . . . . . . . . . . . . . . 2 Kinetic 4 | . . . . . . . . . . . . . . 4 Secondary . | . . . . . . . . . . . . . . . Self-Inflicted Damage 504 | . 53 . . . 33 165 37 . . 216 . . . . Shots 15 | . 1 . . . 1 10 1 . . 2 . . . . Rammed 9 | . 3 . . . 5 . 1 . . . . . . . Targets Rammed 10 | . 3 . . . 6 . 1 . . . . . . . Kicked . | . . . . . . . . . . . . . . . Crushed 1 | . . . . . 1 . . . . . . . . . Highest Temperature 718 | . 270 126 . . 123 16 173 30 70 25 . 3 . 718 Average Temperature 122 | . 101 54 . . 57 6 61 11 28 7 . 2 . 280 Received Heat Transfer 2148 | . 192 51 . . 162 93 405 90 45 147 . 45 . 918 Effects 20 | . . . . . . . . . . . . . . 20 Energy Bleed 2 | . . . . . . . . . . . . . . 2 Interference 2 | . . . . . . . . . . . . . . 2 Matter Decay 2 | . . . . . . . . . . . . . . 2 Short Circuit 6 | . . . . . . . . . . . . . . 6 Damage (minor) 2 | . . . . . . . . . . . . . . 2 Damage (major) 3 | . . . . . . . . . . . . . . 3 Damage (core) 3 | . . . . . . . . . . . . . . 3 Siege Activations . | . . . . . . . . . . . . . . . Robots Corrupted 1 | . . . . . 1 . . . . . . . . . Combat Hostiles 1 | . . . . . 1 . . . . . . . . . Parts Fried 3 | . 1 . . . 2 . . . . . . . . . Impact Corruptions 1 | . . . . . . . . . . . . . . 1 Robots Melted . | . . . . . . . . . . . . . . . Combat Hostiles . | . . . . . . . . . . . . . . . Parts Melted 6 | . . . . . . . . 4 1 1 . . . . Heat Transferred 3756 | . 200 . . . 100 . 629 1369 222 1236 . . . . Parts Sabotaged . | . . . . . . . . . . . . . . . Parts Stolen . | . . . . . . . . . . . . . . . Parts Stripped . | . . . . . . . . . . . . . . . Power Chain Reactions 3 | . 1 1 . . 1 . . . . . . . . . Missiles Intercepted . | . . . . . . . . . . . . . . . Alert | -11 -10 -10 -10 -9 -8 -8 -7 -7 -7 -6 -6 -6 -5 -5 ------- Run | Scr Mat Min Exi Min Mat Gar Fac Gar Fac Fac Low Low Fac Upp Peak Influence 911 | . 190 180 . 35 523 834 808 911 496 318 . . 47 . Initial 565 | . . 25 . . . 333 437 565 478 . . . . . Average 278 | . 95 125 . 19 286 648 520 732 237 132 . . 9 . Maximum Alert Level 3 | . . . . . 2 3 3 3 2 1 . . . . Low Security (%) 52 | 100 100 100 . 100 34 . . . 44 79 . . 100 . Level 1 14 | . . . . . 21 13 . . 30 20 . . . . Level 2 24 | . . . . . 44 29 90 56 25 . . . . . Level 3 8 | . . . . . . 56 10 43 . . . . . . Level 4 . | . . . . . . . . . . . . . . . Level 5 . | . . . . . . . . . . . . . . . High Security . | . . . . . . . . . . . . . . . Max Security . | . . . . . . . . . . . . . . . Squads Dispatched 21 | . 2 . . . 5 . 6 . 4 3 . . 1 . Investigation 5 | . 1 . . . . . 2 . . 1 . . 1 . Extermination 5 | . . . . . . . 1 . 2 2 . . . . Reinforcement 7 | . 1 . . . 2 . 2 . 2 . . . . . Assault . | . . . . . . . . . . . . . . . Garrison 4 | . . . . . 3 . 1 . . . . . . . Intercept . | . . . . . . . . . . . . . . . Construction Impeded 1 | . . . . . . . 1 . . . . . . . Haulers Reinforced 2 | . . . . . . . 1 . 1 . . . . . Stealth | -11 -10 -10 -10 -9 -8 -8 -7 -7 -7 -6 -6 -6 -5 -5 --------- Run | Scr Mat Min Exi Min Mat Gar Fac Gar Fac Fac Low Low Fac Upp Distress Signals 3 | . . . . 2 1 . . . . . . . . . Communications Jammed . | . . . . . . . . . . . . . . . Distress Signals . | . . . . . . . . . . . . . . . Times Spotted 143 | . 15 8 . 6 28 15 15 10 15 9 1 3 1 17 Peak Tracking Total 8 | . 3 4 . 1 6 5 8 4 3 3 1 3 1 6 Tactical Retreats 11 | . 4 1 . 1 1 1 1 1 . . . . . 1 Traps | -11 -10 -10 -10 -9 -8 -8 -7 -7 -7 -6 -6 -6 -5 -5 ------- Run | Scr Mat Min Exi Min Mat Gar Fac Gar Fac Fac Low Low Fac Upp Traps Triggered 16 | . 1 . . . . 4 1 5 3 1 . . 1 . Indirectly . | . . . . . . . . . . . . . . . Trap Hack Attempts . | . . . . . . . . . . . . . . . Triggered . | . . . . . . . . . . . . . . . Disarmed . | . . . . . . . . . . . . . . . Reprogrammed . | . . . . . . . . . . . . . . . Reused . | . . . . . . . . . . . . . . . Traps Extracted . | . . . . . . . . . . . . . . . Installed . | . . . . . . . . . . . . . . . Triggered . | . . . . . . . . . . . . . . . Machines | -11 -10 -10 -10 -9 -8 -8 -7 -7 -7 -6 -6 -6 -5 -5 ---------- Run | Scr Mat Min Exi Min Mat Gar Fac Gar Fac Fac Low Low Fac Upp Machines Disabled 19 | . 6 . . . . 2 1 2 2 5 . . . 1 Max in Single Turn 3 | . 3 . . . . 1 1 1 1 3 . . . 1 Garrison Relay 4 | . . . . . . 2 . 2 . . . . . . Machines Sabotaged . | . . . . . . . . . . . . . . . Garrisons Compromised . | . . . . . . . . . . . . . . . Overloaded Fab Kills . | . . . . . . . . . . . . . . . Fab Network Shutdowns . | . . . . . . . . . . . . . . . Hacking | -11 -10 -10 -10 -9 -8 -8 -7 -7 -7 -6 -6 -6 -5 -5 --------- Run | Scr Mat Min Exi Min Mat Gar Fac Gar Fac Fac Low Low Fac Upp Machines Accessed 16 | . 5 . 2 . 2 . 2 . 3 . . . . 2 Terminals 6 | . 5 . . . 1 . . . . . . . . . Fabricators 1 | . . . . . . . . . 1 . . . . . Repair Stations 2 | . . . . . . . 1 . 1 . . . . . Recycling Units 1 | . . . . . . . . . 1 . . . . . Scanalyzers . | . . . . . . . . . . . . . . . Garrison Access 2 | . . . . . 1 . 1 . . . . . . . Total Hacks 45 | . 18 . 2 . 3 . 5 . 15 . . . . 2 Successful 29 | . 9 . 2 . 1 . 4 . 11 . . . . 2 Failed 16 | . 9 . . . 2 . 1 . 4 . . . . . Catastrophic 2 | . 1 . . . 1 . . . . . . . . . Database Lockouts . | . . . . . . . . . . . . . . . Manual 22 | . 15 . 1 . 1 . . . 5 . . . . . Terminals 19 | . 18 . . . 1 . . . . . . . . . Fabricators 9 | . . . . . . . . . 9 . . . . . Repair Stations 7 | . . . . . . . 3 . 4 . . . . . Recycling Units 2 | . . . . . . . . . 2 . . . . . Scanalyzers . | . . . . . . . . . . . . . . . Garrison Access 4 | . . . . . 2 . 2 . . . . . . . Terminal Hacks 11 | . 7 . 2 . . . . . . . . . . 2 Record 1 | . . . 1 . . . . . . . . . . . Part Schematic 1 | . 1 . . . . . . . . . . . . . Robot Analysis 2 | . 2 . . . . . . . . . . . . . Open Door 2 | . . . . . . . . . . . . . . 2 Zone Layout 4 | . 4 . . . . . . . . . . . . . EX-Prototype ID Bank 1 | . . . 1 . . . . . . . . . . . Fabricator Hacks 6 | . . . . . . . . . 6 . . . . . Load Schematic 1 | . . . . . . . . . 1 . . . . . Build 5 | . . . . . . . . . 5 . . . . . Repair Station Hacks 4 | . . . . . . . 2 . 2 . . . . . Scan Component 2 | . . . . . . . 1 . 1 . . . . . Repair 2 | . . . . . . . 1 . 1 . . . . . Recycling Unit Hacks . | . . . . . . . . . . . . . . . Scanalyzer . | . . . . . . . . . . . . . . . Garrison Access Hacks 3 | . . . . . 1 . 2 . . . . . . . Unlock Access 2 | . . . . . 1 . 1 . . . . . . . Coupler Status 1 | . . . . . . . 1 . . . . . . . Unauthorized Hacks 5 | . 2 . . . . . . . 3 . . . . . Terminals 2 | . 2 . . . . . . . . . . . . . Botnet 2 | . 2 . . . . . . . . . . . . . Fabricators 1 | . . . . . . . . . 1 . . . . . Prioritize 1 | . . . . . . . . . 1 . . . . . Repair Stations 1 | . . . . . . . . . 1 . . . . . Mechanics 1 | . . . . . . . . . 1 . . . . . Recycling Units 1 | . . . . . . . . . 1 . . . . . Mask 1 | . . . . . . . . . 1 . . . . . Scanalyzers . | . . . . . . . . . . . . . . . Garrison Access . | . . . . . . . . . . . . . . . Data Cores Recovered 1 | . . . . . 1 . . . . . . . . . Used . | . . . . . . . . . . . . . . . Hacking Detections 10 | . 5 . . . 2 . 1 . 2 . . . . . Full Trace Events 2 | . 1 . . . . . 1 . . . . . . . Feedback Events . | . . . . . . . . . . . . . . . Feedback Blocked . | . . . . . . . . . . . . . . . Robot Schematics Acquired . | . . . . . . . . . . . . . . . Robots Built . | . . . . . . . . . . . . . . . Matter . | . . . . . . . . . . . . . . . Time . | . . . . . . . . . . . . . . . Total Robot Build Rating . | . . . . . . . . . . . . . . . Part Schematics Acquired 1 | . 1 . . . . . . . . . . . . . Parts Built 5 | . . . . . . . . . 5 . . . . . Matter 510 | . . . . . . . . . 510 . . . . . Time 151 | . . . . . . . . . 151 . . . . . Total Part Build Rating 5 | . . . . . . . . . 5 . . . . . Parts Repaired 2 | . . . . . . . 1 . 1 . . . . . Time 45 | . . . . . . . 13 . 32 . . . . . Parts Recycled . | . . . . . . . . . . . . . . . Recycled Matter . | . . . . . . . . . . . . . . . Retrieved Matter . | . . . . . . . . . . . . . . . Retrieved Components . | . . . . . . . . . . . . . . . Parts Scanalyzed . | . . . . . . . . . . . . . . . Part Schematics Acquired . | . . . . . . . . . . . . . . . Parts Damaged . | . . . . . . . . . . . . . . . Bothacking | -11 -10 -10 -10 -9 -8 -8 -7 -7 -7 -6 -6 -6 -5 -5 ------------ Run | Scr Mat Min Exi Min Mat Gar Fac Gar Fac Fac Low Low Fac Upp Used RIF Installer 2 | . . . . . . 1 . 1 . . . . . . Robot Detection 1 | . . . . . . . . 1 . . . . . . Robots Hacked 14 | . . . . . . . . 2 8 4 . . . . Non-combat 10 | . . . . . . . . . 6 4 . . . . Combat 4 | . . . . . . . . 2 2 . . . . . Robot Hacks Applied 17 | . . . . . . . . 3 10 4 . . . . drop_inventory 2 | . . . . . . . . . 1 1 . . . . ignore_parts 4 | . . . . . . . . . 1 3 . . . . purge_threat 2 | . . . . . . . . . 2 . . . . . map_route 1 | . . . . . . . . . 1 . . . . . mark_security 1 | . . . . . . . . . 1 . . . . . scatter_targeting 1 | . . . . . . . . 1 . . . . . . reboot_system 1 | . . . . . . . . . 1 . . . . . go_dormant 1 | . . . . . . . . 1 . . . . . . overwrite_iff 1 | . . . . . . . . . 1 . . . . . streamctrl_low 1 | . . . . . . . . . 1 . . . . . formatsys_high 2 | . . . . . . . . 1 1 . . . . . Relay Couplers Released 19 | . . . . . . 10 . 9 . . . . . . Machine Destruction 19 | . . . . . . 10 . 9 . . . . . . Attached 4 | . . . . . . . . 1 3 . . . . . Robots Rewired . | . . . . . . . . . . . . . . . Allies Hacked . | . . . . . . . . . . . . . . . Hacks Repelled . | . . . . . . . . . . . . . . . Allies | -11 -10 -10 -10 -9 -8 -8 -7 -7 -7 -6 -6 -6 -5 -5 -------- Run | Scr Mat Min Exi Min Mat Gar Fac Gar Fac Fac Low Low Fac Upp Total Allies 5 | . . . . . . . . 1 3 . . . . 1 Largest Group 1 | . . . . . . . . 1 1 . . . . 1 Highest-Rated Group 180 | . . . . . . . . 32 32 . . . . 180 Highest-Rated Ally 180 | . . . . . . . . 32 32 . . . . 180 Total Orders 3 | . . . . . . . . 2 1 . . . . . STAY 1 | . . . . . . . . 1 . . . . . . FOLLOW 1 | . . . . . . . . 1 . . . . . . AID 1 | . . . . . . . . . 1 . . . . . Ally Attacks 20 | . . . . . . . . 4 16 . . . . . Total Damage 373 | . . . . . . . . 128 245 . . . . . Kills 2 | . . . . . . . . 1 1 . . . . . Allies Corrupted . | . . . . . . . . . . . . . . . Allies Melted . | . . . . . . . . . . . . . . . Intel | -11 -10 -10 -10 -9 -8 -8 -7 -7 -7 -6 -6 -6 -5 -5 ------- Run | Scr Mat Min Exi Min Mat Gar Fac Gar Fac Fac Low Low Fac Upp Robot Analysis Total 2 | . 2 . . . . . . . . . . . . . Derelict Logs Recovered 3 | . . 2 . . . . . . . . . . . 1 Drone Launches . | . . . . . . . . . . . . . . . Drone Recoveries . | . . . . . . . . . . . . . . . Exploration | -11 -10 -10 -10 -9 -8 -8 -7 -7 -7 -6 -6 -6 -5 -5 ------------- Run | Scr Mat Min Exi Min Mat Gar Fac Gar Fac Fac Low Low Fac Upp Turns Passed 8392 | 18 892 234 538 422 701 486 370 470 1610 570 633 36 89 1323 Spaces Moved 4182 | 11 442 167 462 205 301 227 171 212 703 266 315 19 48 633 Core 4 | . . . . . . . . . . . . . . 4 Treads 3537 | 7 442 . . 197 301 227 171 212 703 266 315 19 48 629 Legs 4 | 4 . . . . . . . . . . . . . . Wheels 637 | . . 167 462 8 . . . . . . . . . . Hover . | . . . . . . . . . . . . . . . Flight . | . . . . . . . . . . . . . . . Fastest Speed 80 | 120 160 100 80 120 180 180 180 180 180 180 200 200 182 182 Average Speed 174 | 145 166 100 110 196 182 180 180 180 181 199 200 200 185 194 Slowest Speed 2400 | 160 200 100 120 200 200 180 180 180 200 200 200 200 200 2400 Overloaded Moves . | . . . . . . . . . . . . . . . Propulsion Burnouts . | . . . . . . . . . . . . . . . Robots Hopped . | . . . . . . . . . . . . . . . Cave-ins Triggered . | . . . . . . . . . . . . . . . Exploration Rate (%) 33 | 2 58 40 70 51 31 54 9 43 16 9 51 7 2 64 Regions Visited 14 Branch Regions 6 Pre-discovered Areas 1 | . . . 1 . . . . . . . . . . . Known Exits Taken 2 | . . . . . 1 . 1 . . . . . . . Unknown Exits Taken 10 | 1 1 1 1 1 . . . . 1 1 1 1 1 . Scrap Searched 10 | . . 2 . 2 . . . . . . 2 . . 4 Spaces Dug . | . . . . . . . . . . . . . . . Terrain Destroyed 202 | . 22 4 . 18 34 37 20 . . 42 . 1 1 23 Melee . | . . . . . . . . . . . . . . . Projectile 79 | . . . . 18 31 . 3 . . 2 . 1 1 23 AOE 123 | . 22 4 . . 3 37 17 . . 40 . . . . Terrain Rammed . | . . . . . . . . . . . . . . . Walls Destroyed . | . . . . . . . . . . . . . . . Machines Disabled . | . . . . . . . . . . . . . . . Actions | -11 -10 -10 -10 -9 -8 -8 -7 -7 -7 -6 -6 -6 -5 -5 --------- Run | Scr Mat Min Exi Min Mat Gar Fac Gar Fac Fac Low Low Fac Upp Total 5065 | 12 536 202 490 226 431 280 219 293 1001 303 321 18 48 685 Wait 414 | . 25 6 . 8 73 2 13 34 236 12 1 . . 4 Move 4168 | 10 441 166 461 204 301 225 171 210 702 265 314 18 47 633 Hop . | . . . . . . . . . . . . . . . Pick Up 88 | . 10 5 21 3 11 7 4 9 8 5 3 . . 2 Fast Attach 30 | . 3 . 1 1 2 . 6 1 4 3 . . 1 8 Attach 25 | . 3 1 . . 7 2 . 4 5 2 . . . 1 Detach 15 | . 2 . . 2 1 . 3 1 4 1 . . . 1 Swap 39 | 2 8 4 . 3 8 1 . 4 6 2 . . . 1 Drop 72 | . 6 3 7 5 8 7 9 7 5 8 3 . . 4 Fire 152 | . 35 17 . . 14 29 12 9 9 . . . . 27 Melee 31 | . . . . . . . . 3 19 5 . . . 4 Ram . | . . . . . . . . . . . . . . . Kick . | . . . . . . . . . . . . . . . Crush 10 | . 3 . . . 6 . 1 . . . . . . . Escape Stasis 19 | . . . . . . 7 . 10 2 . . . . . Rewire 2 | . . . . . . . . 1 1 . . . . . Trap . | . . . . . . . . . . . . . . . Miscellaneous . | . . . . . . . . . . . . . . . Route ------- -11/Scrapyard -10/Materials (discovered 3 exits: [*Mat] / [*Min x2]) -10/Mines (discovered 2 exits: [*Mat] / *Exi) -10/Exiles -9/Mines -8/Materials -8/Garrison -7/Factory -7/Garrison -7/Factory -6/Factory -6/Lower Caves -6/Lower Caves -5/Factory -5/Upper Caves History --------- Turn | Location | Event 1 | -11/Scrapyard | Discovered new exit (range 3) 19 | -11/Scrapyard | Entered Materials 168 | -10/Materials | Discovered new exit (range 16) 301 | -10/Materials | Build established: Mutant 338 | -10/Materials | Discovered new exit (range 8) 512 | -10/Materials | Discovered new exit (range 13) 911 | -10/Materials | Entered Mines 956 | -10/Mines | Learned Materials terminal intel 981 | -10/Mines | Learned Materials security intel 1039 | -10/Mines | Discovered new exit (range 9) 1141 | -10/Mines | Deemed a non-threat by the Exiles lab entrance 1141 | -10/Mines | Discovered new exit (range 5) 1145 | -10/Mines | Entered Exiles 1170 | -10/Exiles | Met 8R-AWN 1186 | -10/Exiles | Met EX-HEX 1214 | -10/Exiles | Met EX-BIN 1285 | -10/Exiles | Met EX-DEC 1306 | -10/Exiles | Learned location of Zion (-7) 1474 | -10/Exiles | Aligned with FarCom system 1475 | -10/Exiles | Given EX-Vault access code 1504 | -10/Exiles | Opened EX-Vault 1512 | -10/Exiles | Found Field Lobotomy Kit 1540 | -10/Exiles | Warned to stay clear of 0b10 Research branches 1565 | -10/Exiles | Found AWS/Thermal 1569 | -10/Exiles | Found AWS/Gauss 1666 | -10/Exiles | Build established: Hauler-Mutant 1672 | -10/Exiles | Discovered new exit (range 10) 1683 | -10/Exiles | Stole three prototypes: AWS/Thermal, AWS/Gauss, Field Lobotomy Kit 1683 | -10/Exiles | Entered Mines 1684 | -9/Mines | Assembled infested the area 2045 | -9/Mines | Discovered new exit (range 13) 2075 | -9/Mines | Found a hidden stash of uninstalled traps 2105 | -9/Mines | Entered Materials 2105 | -8/Materials | Evolved 4 slots: Propulsion x1, Utility x3 2107 | -8/Materials | Loaded intel: 12 terminal locations 2286 | -8/Materials | Garrison activated, responded to threat 2530 | -8/Materials | Destroyed 8 combat bots 2806 | -8/Materials | Identified exit to Garrison 2806 | -8/Materials | Entered Garrison 2815 | -8/Garrison | Installed Relay Interface Framework 2868 | -8/Garrison | Triggered checkpoint 2910 | -8/Garrison | Garrison Relay disabled 2970 | -8/Garrison | Triggered checkpoint 3068 | -8/Garrison | Triggered checkpoint 3134 | -8/Garrison | Discovered new exit (range 15) 3209 | -8/Garrison | Garrison Relay disabled 3292 | -8/Garrison | Entered Factory 3292 | -7/Factory | Evolved 2 slots: Utility x1, Weapon x1 3294 | -7/Factory | FarCom data flow suspended 3500 | -7/Factory | Build established: Bothacker-Mutant 3506 | -7/Factory | Repaired Grenade Launcher 3585 | -7/Factory | Garrison activated, responded to threat 3654 | -7/Factory | Destroyed 8 combat bots 3662 | -7/Factory | Identified exit to Garrison 3662 | -7/Factory | Entered Garrison 3671 | -7/Garrison | Expanded RIF knowledge: Robot Detection 3714 | -7/Garrison | Triggered checkpoint 3758 | -7/Garrison | Garrison Relay disabled 3902 | -7/Garrison | Triggered checkpoint 4018 | -7/Garrison | Garrison Relay disabled 4084 | -7/Garrison | Discovered new exit (range 15) 4132 | -7/Garrison | Entered Factory 4132 | -7/Factory | Accompanied by 1 ally 4208 | -7/Factory | Repaired Hvy. EM Pulse Gun 4604 | -7/Factory | Fabricated Hcp. Storage Unit (x1) 4760 | -7/Factory | Fabricated Hcp. Storage Unit (x1) 4803 | -7/Factory | Fabricated Hcp. Storage Unit (x1) 4833 | -7/Factory | Fabricated Hcp. Storage Unit (x1) 4904 | -7/Factory | Fabricated Hcp. Storage Unit (x1) 5715 | -7/Factory | Discovered new exit (range 16) 5742 | -7/Factory | Entered another Factory area 5742 | -6/Factory | Evolved 2 slots: Utility x2 6199 | -6/Factory | Found Prototype Processor 6199 | -6/Factory | Identified Exp. Signal Interpreter 6279 | -6/Factory | Discovered new exit (range 12) 6312 | -6/Factory | Entered Lower Caves 6923 | -6/Lower Caves | Discovered new exit (range 11) 6945 | -6/Lower Caves | Entered another Lower Caves area 6969 | -6/Lower Caves | Discovered new exit (range 6) 6981 | -6/Lower Caves | Entered Factory 6981 | -5/Factory | Evolved 2 slots: Propulsion x1, Utility x1 7052 | -5/Factory | Discovered new exit (range 11) 7070 | -5/Factory | Entered Upper Caves 7267 | -5/Upper Caves | Build established: Hauler-Mutant 7311 | -5/Upper Caves | Learned Factory interactive machine intel 7893 | -5/Upper Caves | Attracted the attention of an 0b10 checkpoint 7909 | -5/Upper Caves | Build established: Hauler-Tank 8290 | -5/Upper Caves | Attacked by a faux Warlord 8345 | -5/Upper Caves | Core integrity fell below 50% 8374 | -5/Upper Caves | Core integrity fell below 20% 8393 | -5/Upper Caves | Destroyed by F4-IBS(g) with Beamcaster Last Messages --------------- 08346_ Overheating: Broken Arm. Medium Treads damaged (-165). 08346_ Overheating: Adv. Target Analyzer damaged (-18). 08346_ Lyr. Light Armor Plating destroyed. 08348_ Arm. Medium Treads permanently disabled. 08348_ Overheating: Short circuit. 08349_ F-cell Engine permanently disabled. 08349_ Overheating: Short circuit. 08352_ Overheating: System interference. 08352_ Impact Mace temporarily disabled. 08355_ Broken Arm. Medium Treads destroyed. 08355_ Lyr. Light Armor Plating destroyed. 08358_ Humpback destroyed. 08359_ Broken F-cell Engine destroyed. 08365_ Adv. Target Analyzer destroyed. 08368_ Hvy. Gauss Cannon destroyed. A strange signal echoes through the caves. 08379_ Imp. System Shield destroyed. 08381_ Impact Mace destroyed. 08381_ Broken Arm. Medium Treads destroyed. 08388_ Acquired Field Lobotomy Kit. Map ----- +----------------------------------------------------+ | ?????????????????????????????????????????????????? | | ?????????????????????????????????????????????????? | | ?????????????????????????????????????????????????? | | ????????????????????????????????? ????????????? | | ???????????????????????????????? ???????????? | | ???????????????????????????????? ???????????? | | ?????????????????????????###???? ??#####? ??? | | ????????????????????????? ????# ??## ??? | | ?????????????????????????# ????? ??# ???? | | ????????????????????????## ?????# #??? ???? | | ???????????????????????## ?????# ##### ###??? | | ??????????????????????## ????## # # # #??? | | ??????????????????????# ##??# #### | | ??????????????#???????# ##?# # ## # | | ??????????????# ??????# ### # ## # # | | ??????????????# ??????# ## # | | ??????????????# ???????# # # # | | ???????????#### #????????# ^ ## | | ??????????## ####????# ## ## | | ??????????#"" ;#???## ## | | ???????????##" ! ###??# ## | | ???? %%] ;##?# ## #### ## | | ???? #; #;=% ;#?# ### ##??# ### | | ???????????????# # =#gg ### #?####???# #####?# | | ??????????????#b #*=]!!! #????????# ##??#### | | ??????????????#b ][/!!l@ #?###????####???# | | ??????????????## !=#!### ## ####????????# | | ??????????????# #=#?## #????????## | | ??????????????# ?#!!##=#??## ##?????????## | | ??????????????##?#?#?!!#???# ####???????????# | | ????????????????????? !#??## ##????????????# | | ????????????????????####??# ##?????????? | | ???????????????????## #?## #???????? | | ???????????????????# ### ## #??????? | | ???????????????????# ### ## #??????# | | ???????????????????# # #??????# | | ???????????????????#X##### ## ##?????# # | | ???????????????????###???## ####?????# ? | | ?????????????????????????## ##??????# ### ? | | ?????????????????????????# ##?????# #??# ? | | ?????????????????????????# #??????##???# ? | | ?????????????????????????## #??????????## ? | | ?????????????????????????## ##???????### # | | ?????????????????????????# #???###?# | | ?????????????????????????# ##?## ### | | ?????????????????????????# ### ## | | ?????????????????????????## ### #? | | ??????????????????????????# #?###??? | | ??????????????????????????# #????### | | ??????????????????????????# ##????# | +----------------------------------------------------+ Best States ------------- Heat Dissipation 40 Energy Generation 19 Energy Capacity 500 Matter Stores 300 Matter Capacity 300 Sight Range 22 Terrain Scan Density 10 Armor Coverage 975 Evasion (%) 40 Targeting Accuracy 8 Target Analysis 8 Recoil Reduction 4 Defensive Hacking 12 Relay Coupler Types 31 Relay Coupler Value 1 Item Schematics ----------------- Hcp. Storage Unit | -10/Materials | Hacked Robot Schematics ------------------ None Fabricated ------------ Hcp. Storage Unit | x1 | -7/Factory Hcp. Storage Unit | x1 | -7/Factory Hcp. Storage Unit | x1 | -7/Factory Hcp. Storage Unit | x1 | -7/Factory Hcp. Storage Unit | x1 | -7/Factory Alien Tech Used ----------------- None Achievements -------------- None Challenges ------------ None Game ------ Seed ReclamationNullAutohacker Manual? 0 Play Time 00:58:12 Cumulative 245.2 hours Start 2021.01.18 @ 11:44:21 End 2021.01.19 @ 05:17:13 Sessions 5 Manual Loads 0 Difficulty Rogue Special Mode None Game No. 231 Rogue 99 Adventurer 65 Explorer 67 Win Type - Total 14 Types 11/0/2/1/0/0/0/0/0 Lore% 73 Gallery% 82 Achievement% 64 Wizard Run 0 Options --------- ASCII 0 Keyboard 0 Movement Numpad Keybinds 0 Fullscreen 2 Font 18/TerminusBold Map View 76x50 Tactical HUD 1 Map Filters NONE Filters NONE Steam 1 RUN: 480414b1-32b8-4fac-b99e-6ebdd55dfc93